fUSD/lending_fUSD_20240708
["ID","MTS","AMOUNT","RATE_DAILY","PERIOD"]
[331487704,1720438390011,-1198.7,0.00050136,120]
[331487705,1720438390064,-14120.27,0.00050136,120]
[331487706,1720438390115,-5150.8,0.00050136,120]
[331487707,1720438390168,-8496.48,0.00050136,120]
[331487708,1720438390219,-666.9,0.00050136,120]
[331487709,1720438390272,-500.0,0.00050136,120]
[331487710,1720438390325,-500.0,0.00050136,120]
[331487711,1720438390378,-77163.49,0.00050136,120]
[331487712,1720438390431,-500.0,0.00050136,120]
[331487713,1720438390483,-1701.37,0.00050136,120]
[331487714,1720438390535,-500.0,0.00050136,120]
[331487715,1720438390589,-1695.49,0.00050136,120]
[331487716,1720438390643,-3671.69,0.00050136,120]
[331487717,1720438390700,-500.0,0.00050136,120]
[331487718,1720438390759,-43789.77,0.00050136,120]
[331487719,1720438390811,-744.56,0.00050136,120]
[331487720,1720438390867,-500.0,0.00050136,120]
[331487721,1720438390922,-5882.08,0.00050136,120]
[331487722,1720438390974,-500.0,0.00050136,120]
[331487723,1720438391025,-4253.18,0.00050136,120]
[331487724,1720438391077,-2648.44,0.00050136,120]
[331487725,1720438391133,-500.0,0.00050136,120]
[331487726,1720438391188,-2191.17,0.00050136,120]
[331487727,1720438391247,-500.0,0.00050136,120]
[331487728,1720438391302,-4023.3,0.00050136,120]
[331487729,1720438391357,-500.0,0.00050136,120]
[331487730,1720438391413,-1885.58,0.00050136,120]
[331487731,1720438391465,-500.0,0.00050136,120]
[331487732,1720438391521,-500.0,0.00050136,120]
[331487733,1720438391577,-20208.54,0.00050136,120]
[331487734,1720438391628,-159.8267339,0.00050153,60]
[331487735,1720438391682,-240.24352775,0.00050158,60]
[331487736,1720438391732,-666.47884154,0.00050171,60]
[331487737,1720438392037,-1268.81765462,0.00050183,60]
[331487738,1720438392089,-1941.21439951,0.00050277,60]
[331487739,1720438392138,-155.51654116,0.00050305,60]
[331487740,1720438392188,-151.14628752,0.0005032,60]
[331487741,1720438392242,-666.47884154,0.00050345,60]
[331487742,1720438392295,-162.01068449,0.00050373,60]
[331487743,1720438392350,-152.85083519,0.00050402,60]
[331487744,1720438392401,-858.68,0.0005041,120]
[331487745,1720438392454,-500.0,0.0005041,120]
[331487746,1720438392505,-1349.79,0.0005041,120]
[331487747,1720438392556,-502.55,0.0005041,120]
[331487748,1720438392611,-500.0,0.0005041,120]
[331487749,1720438392665,-500.0,0.0005041,120]
[331487750,1720438392716,-3020.56,0.0005041,120]
[331487751,1720438392767,-500.0,0.0005041,120]
[331487752,1720438392821,-500.0,0.0005041,120]
[331487753,1720438392874,-500.0,0.0005041,120]
[331487754,1720438392926,-1293.82,0.0005041,120]
[331487755,1720438392975,-1078.52,0.0005041,120]
[331487756,1720438393025,-1674.53,0.0005041,120]
[331487757,1720438393072,-500.0,0.0005041,120]
[331487758,1720438393120,-834.62,0.0005041,120]
[331487759,1720438393168,-500.0,0.0005041,120]
[331487760,1720438393216,-625.62,0.0005041,120]
[331487761,1720438393267,-500.0,0.0005041,120]
[331487762,1720438393315,-1390.62,0.0005041,120]
[331487763,1720438393368,-1406.2,0.0005041,120]
[331487764,1720438393419,-500.0,0.0005041,120]
[331487765,1720438393469,-500.0,0.0005041,120]
[331487766,1720438393518,-501.05729742,0.0005041,120]
[331487767,1720438393566,-500.0,0.0005041,120]
[331487768,1720438393615,-500.0,0.0005041,120]
[331487769,1720438393661,-500.0,0.0005041,120]
[331487770,1720438393709,-500.0,0.0005041,120]
[331487771,1720438393756,-500.0,0.0005041,120]
[331487772,1720438393804,-500.0,0.0005041,120]
[331487773,1720438393854,-500.0,0.0005041,120]
[331487774,1720438393902,-500.0,0.0005041,120]
[331487775,1720438393958,-500.0,0.0005041,120]
[331487777,1720438394011,-500.0,0.0005041,120]
[331487778,1720438394064,-500.0,0.0005041,120]
[331487779,1720438394117,-500.0,0.0005041,120]
[331487780,1720438394169,-669.87,0.0005041,120]
[331487781,1720438394218,-505.17393484,0.0005041,120]
[331487782,1720438394269,-502.58135693,0.0005041,120]
[331487783,1720438394323,-500.0,0.0005041,120]
[331487784,1720438394376,-500.0,0.0005041,120]
[331487785,1720438394428,-361.52,0.0005041,120]
[331487786,1720438394483,-500.0,0.0005041,120]
[331487787,1720438394534,-500.0,0.0005041,120]
[331487788,1720438394585,-617.8,0.0005041,120]
[331487789,1720438394638,-500.0,0.0005041,120]
[331487790,1720438394686,-728.82,0.0005041,120]
[331487791,1720438394735,-2399.28,0.0005041,120]
[331487792,1720438394784,-1434.06,0.0005041,120]
[331487793,1720438394832,-500.0,0.0005041,120]
[331487794,1720438394882,-510.34,0.0005041,120]
[331487795,1720438394932,-500.0,0.0005041,120]
[331487796,1720438394987,-500.0,0.0005041,120]
[331487797,1720438395042,-2007.19,0.0005041,120]
[331487798,1720438395090,-1253.66,0.0005041,120]
[331487799,1720438395139,-500.0,0.0005041,120]
[331487800,1720438395191,-1628.65,0.0005041,120]
[331487801,1720438395241,-1435.39,0.0005041,120]
[331487802,1720438395289,-2683.83,0.0005041,120]
[331487803,1720438395341,-156.48985045,0.0005041,120]
[331487804,1720438395390,-500.0,0.0005041,120]
[331487805,1720438395438,-1226.3,0.0005041,120]
[331487806,1720438395486,-856.13,0.0005041,120]
[331487807,1720438395535,-1397.31,0.0005041,120]
[331487808,1720438395585,-500.0,0.0005041,120]
[331487809,1720438395632,-500.0,0.0005041,120]
[331487810,1720438395683,-602.51,0.0005041,120]
[331487811,1720438395731,-667.55,0.0005041,120]
[331487812,1720438395780,-500.0,0.0005041,120]
[331487813,1720438395832,-1620.69,0.0005041,120]
[331487814,1720438395882,-812.96,0.0005041,120]
[331487815,1720438395933,-2144.73,0.0005041,120]
[331487816,1720438395985,-500.0,0.0005041,120]
[331487817,1720438396034,-500.0,0.0005041,120]
[331487818,1720438396083,-500.0,0.0005041,120]
[331487819,1720438396133,-502.39659084,0.0005041,120]
[331487820,1720438396181,-3560.63,0.0005041,120]
[331487821,1720438396230,-1545.37,0.0005041,120]
[331487822,1720438396279,-500.0,0.0005041,120]
[331487823,1720438396328,-500.0,0.0005041,120]
[331487824,1720438396378,-505.85,0.0005041,120]
[331487825,1720438396429,-509.51177736,0.0005041,120]
[331487826,1720438396478,-388.06746987,0.0005041,120]
[331487827,1720438396527,-500.0,0.0005041,120]
[331487828,1720438396578,-801.42,0.0005041,120]
[331487829,1720438396626,-500.0,0.0005041,120]
[331487830,1720438396675,-500.0,0.0005041,120]
[331487831,1720438396726,-3858.43,0.0005041,120]
[331487832,1720438396773,-500.0,0.0005041,120]
[331487833,1720438396823,-500.0,0.0005041,120]
[331487834,1720438396871,-500.0,0.0005041,120]
[331487835,1720438396922,-500.0,0.0005041,120]
[331487836,1720438396974,-500.0,0.0005041,120]
[331487837,1720438397022,-4446.26,0.0005041,120]
[331487838,1720438397071,-500.0,0.0005041,120]
[331487839,1720438397119,-737.86,0.0005041,120]
[331487840,1720438397170,-564.21,0.0005041,120]
[331487841,1720438397220,-500.0,0.0005041,120]
[331487842,1720438397266,-500.0,0.0005041,120]
[331487843,1720438397314,-988.15,0.0005041,120]
[331487844,1720438397361,-6909.46,0.0005041,120]
[331487845,1720438397410,-6124.77,0.0005041,120]
[331487846,1720438397462,-7434.29,0.0005041,120]
[331487847,1720438397510,-1564.94,0.0005041,120]
[331487848,1720438397559,-3097.92,0.0005041,120]
[331487849,1720438397607,-236.68541785,0.0005041,120]
[331487850,1720438397656,-500.0,0.0005041,120]
[331487851,1720438397708,-500.0,0.0005041,120]
[331487852,1720438397758,-500.0,0.0005041,120]
[331487853,1720438397809,-2569.11,0.0005041,120]
[331487854,1720438397859,-500.0,0.0005041,120]
[331487855,1720438397909,-817.49,0.0005041,120]
[331487856,1720438397961,-4977.25,0.0005041,120]
[331487857,1720438398010,-931.33,0.0005041,120]
[331487858,1720438398060,-500.0,0.0005041,120]
[331487859,1720438398106,-6557.78,0.0005041,120]
[331487860,1720438398151,-8047.98,0.0005041,120]
[331487861,1720438398196,-4890.76,0.0005041,120]
[331487862,1720438398244,-926.07,0.0005041,120]
[331487863,1720438398291,-640.15681323,0.0005041,120]
[331487864,1720438398337,-500.0,0.0005041,120]
[331487865,1720438398388,-500.0,0.0005041,120]
[331487866,1720438398435,-634.86,0.0005041,120]
[331487867,1720438398480,-5071.97,0.0005041,120]
[331487868,1720438398525,-5197.47,0.0005041,120]
[331487869,1720438398574,-12824.58,0.0005041,120]
[331487870,1720438398622,-500.0,0.0005041,120]
[331487871,1720438398671,-737.63,0.0005041,120]
[331487872,1720438398721,-5000.69,0.0005041,120]
[331487873,1720438398771,-500.0,0.0005041,120]
[331487874,1720438398818,-500.0,0.0005041,120]
[331487875,1720438398868,-979.51,0.0005041,120]
[331487876,1720438398919,-1089.79,0.0005041,120]
[331487877,1720438398971,-500.0,0.0005041,120]
[331487878,1720438399023,-1000.0,0.0005041,120]
[331487879,1720438399074,-602.11,0.0005041,120]
[331487880,1720438399126,-3962.26,0.0005041,120]
[331487881,1720438399176,-816.01,0.0005041,120]
[331487882,1720438399227,-500.0,0.0005041,120]
[331487883,1720438399278,-5967.11,0.0005041,120]
[331487884,1720438399331,-500.0,0.0005041,120]
[331487885,1720438399386,-952.17,0.0005041,120]
[331487886,1720438399438,-500.0,0.0005041,120]
[331487887,1720438399490,-3856.8,0.0005041,120]
[331487888,1720438399541,-1444.4,0.0005041,120]
[331487889,1720438399595,-4328.98,0.0005041,120]
[331487890,1720438399644,-500.0,0.0005041,120]
[331487891,1720438399698,-602.68,0.0005041,120]
[331487892,1720438399757,-500.0,0.0005041,120]
[331487893,1720438399812,-500.0,0.0005041,120]
[331487894,1720438399867,-1667.53,0.0005041,120]
[331487895,1720438399924,-500.0,0.0005041,120]
[331487896,1720438399980,-4918.52,0.0005041,120]
[331487897,1720438400037,-1665.81,0.0005041,120]
[331487898,1720438400097,-500.0,0.0005041,120]
[331487899,1720438400154,-1892.85,0.0005041,120]
[331487900,1720438400214,-2033.08,0.0005041,120]
[331487901,1720438400271,-500.0,0.0005041,120]
[331487902,1720438400330,-1343.01,0.0005041,120]
[331487903,1720438400392,-498.33617228,0.0005041,120]
[331487904,1720438400449,-3737.99,0.0005041,120]
[331487905,1720438400509,-500.0,0.0005041,120]
[331487906,1720438400568,-500.0,0.0005041,120]
[331487907,1720438400628,-681.78,0.0005041,120]
[331487908,1720438400687,-8334.2,0.0005041,120]
[331487909,1720438400749,-2432.96,0.0005041,120]
[331487910,1720438400809,-197.33243548,0.0005041,120]
[331487911,1720438400867,-500.0,0.0005041,120]
[331487912,1720438400925,-2303.71,0.0005041,120]
[331487913,1720438400983,-500.0,0.0005041,120]
[331487914,1720438401041,-500.0,0.0005041,120]
[331487915,1720438401832,-500.0,0.0005041,120]
[331487916,1720438401919,-500.0,0.0005041,120]
[331487917,1720438401972,-500.0,0.0005041,120]
[331487918,1720438402024,-500.0,0.0005041,120]
[331487919,1720438402072,-7113.69,0.0005041,120]
[331487920,1720438402124,-2372.86,0.0005041,120]
[331487921,1720438402173,-500.0,0.0005041,120]
[331487922,1720438402227,-6365.6,0.0005041,120]
[331487923,1720438402276,-3895.56,0.0005041,120]
[331487924,1720438402324,-500.0,0.0005041,120]
[331487925,1720438402372,-500.0,0.0005041,120]
[331487926,1720438402423,-4737.12,0.0005041,120]
[331487927,1720438402472,-4028.67,0.0005041,120]
[331487928,1720438402522,-2932.06,0.0005041,120]
[331487929,1720438402570,-500.0,0.0005041,120]
[331487930,1720438402619,-9769.22,0.0005041,120]
[331487931,1720438402666,-3721.64,0.0005041,120]
[331487932,1720438402715,-579.46,0.0005041,120]
[331487933,1720438402763,-1491.25,0.0005041,120]
[331487934,1720438402814,-9789.62,0.0005041,120]
[331487935,1720438402863,-1519.45,0.0005041,120]
[331487936,1720438402916,-552.8,0.0005041,120]
[331487937,1720438402969,-500.0,0.0005041,120]
[331487938,1720438403020,-18403.09,0.0005041,120]
[331487939,1720438403071,-5134.91,0.0005041,120]
[331487940,1720438403121,-2497.28,0.0005041,120]
[331487941,1720438403170,-506.61,0.0005041,120]
[331487942,1720438403218,-1198.7,0.0005041,120]
[331487943,1720438403263,-1667.87,0.0005041,120]
[331487944,1720438403310,-14120.27,0.0005041,120]
[331487945,1720438403356,-5150.8,0.0005041,120]
[331487946,1720438403402,-8496.48,0.0005041,120]
[331487947,1720438403452,-666.9,0.0005041,120]
[331487948,1720438403497,-500.0,0.0005041,120]
[331487949,1720438403543,-500.0,0.0005041,120]
[331487950,1720438403592,-77163.49,0.0005041,120]
[331487951,1720438403639,-500.0,0.0005041,120]
[331487952,1720438403684,-1701.37,0.0005041,120]
[331487953,1720438403732,-500.0,0.0005041,120]
[331487954,1720438403778,-1695.49,0.0005041,120]
[331487955,1720438403826,-3671.69,0.0005041,120]
[331487956,1720438403875,-43789.77,0.0005041,120]
[331487957,1720438403927,-437.35420042,0.0005041,120]
[331487958,1720438403980,-744.56,0.0005041,120]
[331487959,1720438404034,-500.0,0.0005041,120]
[331487960,1720438404089,-5882.08,0.0005041,120]
[331487961,1720438404143,-527.14228724,0.0005041,120]
[331487962,1720438404196,-4253.18,0.0005041,120]
[331487963,1720438404249,-2648.44,0.0005041,120]
[331487964,1720438404302,-500.0,0.0005041,120]
[331487965,1720438404358,-2191.17,0.0005041,120]
[331487966,1720438404409,-500.0,0.0005041,120]
[331487967,1720438404466,-4023.3,0.0005041,120]
[331487968,1720438404519,-500.0,0.0005041,120]
[331487969,1720438404572,-1885.58,0.0005041,120]
[331487970,1720438404627,-500.0,0.0005041,120]
[331487971,1720438404683,-500.0,0.0005041,120]
[331487972,1720438404738,-20208.54,0.0005041,120]
[331487973,1720438404790,-155.71206553,0.00050496,60]
[331487974,1720438404841,-166.6666667,0.00050498,60]
[331487975,1720438404893,-155.26727901,0.00050507,60]
[331487976,1720438404947,-155.26727901,0.00050514,60]
[331487977,1720438405002,-155.71206553,0.0005052,60]
[331487978,1720438405056,-167.83737225,0.00050575,60]
[331487979,1720438405108,-1000.0,0.000506,30]
[331487980,1720438405156,-225.0,0.000506,30]
[331487981,1720438405210,-155.71206553,0.00050613,60]
[331487982,1720438405262,-152.85083529,0.00050651,60]
[331487983,1720438405313,-320.6365536,0.00050676,60]
[331487984,1720438405366,-858.68,0.00050684,120]
[331487985,1720438405418,-500.0,0.00050684,120]
[331487986,1720438405471,-1349.79,0.00050684,120]
[331487987,1720438405520,-502.55,0.00050684,120]
[331487988,1720438405570,-500.0,0.00050684,120]
[331487989,1720438405619,-500.0,0.00050684,120]
[331487990,1720438405667,-3020.56,0.00050684,120]
[331487991,1720438405713,-500.0,0.00050684,120]
[331487992,1720438405760,-500.0,0.00050684,120]
[331487993,1720438405806,-500.0,0.00050684,120]
[331487994,1720438405855,-1293.82,0.00050684,120]
[331487995,1720438405903,-1078.52,0.00050684,120]
[331487996,1720438405950,-1674.53,0.00050684,120]
[331487997,1720438405997,-500.0,0.00050684,120]
[331487998,1720438406042,-834.62,0.00050684,120]
[331487999,1720438406090,-500.0,0.00050684,120]
[331488000,1720438406135,-625.62,0.00050684,120]
[331488001,1720438406179,-500.0,0.00050684,120]
[331488002,1720438406227,-833.33,0.00050684,120]
[331488003,1720438406274,-1390.62,0.00050684,120]
[331488004,1720438406323,-1406.2,0.00050684,120]
[331488005,1720438406374,-500.0,0.00050684,120]
[331488006,1720438406424,-500.0,0.00050684,120]
[331488007,1720438406475,-500.0,0.00050684,120]
[331488008,1720438406526,-500.0,0.00050684,120]
[331488009,1720438406575,-500.0,0.00050684,120]
[331488010,1720438406625,-500.0,0.00050684,120]
[331488011,1720438406678,-500.0,0.00050684,120]
[331488012,1720438406728,-500.0,0.00050684,120]
[331488013,1720438406777,-619.55513879,0.00050684,120]
[331488014,1720438406826,-500.0,0.00050684,120]
[331488015,1720438406875,-500.0,0.00050684,120]
[331488016,1720438406926,-500.0,0.00050684,120]
[331488017,1720438407136,-500.0,0.00050684,120]
[331488018,1720438407185,-669.87,0.00050684,120]
[331488019,1720438407235,-506.40714527,0.00050684,120]
[331488020,1720438407286,-500.0,0.00050684,120]
[331488021,1720438407338,-500.0,0.00050684,120]
[331488022,1720438407391,-500.0,0.00050684,120]
[331488023,1720438407442,-617.8,0.00050684,120]
[331488024,1720438407489,-500.0,0.00050684,120]
[331488025,1720438407542,-728.82,0.00050684,120]
[331488026,1720438407593,-2399.28,0.00050684,120]
[331488027,1720438407644,-1434.06,0.00050684,120]
[331488028,1720438407698,-500.0,0.00050684,120]
[331488029,1720438407747,-510.34,0.00050684,120]
[331488030,1720438407796,-500.0,0.00050684,120]
[331488031,1720438407848,-500.0,0.00050684,120]
[331488032,1720438407897,-2007.19,0.00050684,120]
[331488033,1720438407948,-1253.66,0.00050684,120]
[331488034,1720438407997,-500.0,0.00050684,120]
[331488035,1720438408047,-1628.65,0.00050684,120]
[331488036,1720438408097,-1435.39,0.00050684,120]
[331488037,1720438408147,-2683.83,0.00050684,120]
[331488038,1720438408197,-500.0,0.00050684,120]
[331488039,1720438408246,-1226.3,0.00050684,120]
[331488040,1720438408294,-856.13,0.00050684,120]
[331488041,1720438408343,-1397.31,0.00050684,120]
[331488042,1720438408394,-500.0,0.00050684,120]
[331488043,1720438408443,-500.0,0.00050684,120]
[331488044,1720438408489,-602.51,0.00050684,120]
[331488045,1720438408536,-667.55,0.00050684,120]
[331488046,1720438408587,-500.0,0.00050684,120]
[331488047,1720438408634,-1620.69,0.00050684,120]
[331488048,1720438408682,-812.96,0.00050684,120]
[331488049,1720438408731,-2144.73,0.00050684,120]
[331488050,1720438408779,-500.0,0.00050684,120]
[331488051,1720438408830,-500.0,0.00050684,120]
[331488052,1720438408880,-500.0,0.00050684,120]
[331488053,1720438408933,-3560.63,0.00050684,120]
[331488054,1720438408986,-1545.37,0.00050684,120]
[331488055,1720438409039,-500.0,0.00050684,120]
[331488056,1720438409095,-500.0,0.00050684,120]
[331488057,1720438409149,-505.85,0.00050684,120]
[331488058,1720438409204,-500.0,0.00050684,120]
[331488059,1720438409261,-801.42,0.00050684,120]
[331488060,1720438409317,-500.0,0.00050684,120]
[331488061,1720438409374,-500.0,0.00050684,120]
[331488062,1720438409433,-3858.43,0.00050684,120]
[331488063,1720438409493,-500.0,0.00050684,120]
[331488064,1720438409548,-500.0,0.00050684,120]
[331488065,1720438409604,-2117.51,0.00050684,120]
[331488066,1720438409659,-500.0,0.00050684,120]
[331488067,1720438409715,-500.0,0.00050684,120]
[331488068,1720438409770,-500.0,0.00050684,120]
[331488069,1720438409823,-4446.26,0.00050684,120]
[331488070,1720438409874,-500.0,0.00050684,120]
[331488071,1720438409932,-737.86,0.00050684,120]
[331488072,1720438409987,-564.21,0.00050684,120]
[331488073,1720438410039,-500.0,0.00050684,120]
[331488074,1720438410094,-500.0,0.00050684,120]
[331488075,1720438410145,-988.15,0.00050684,120]
[331488076,1720438410197,-6909.46,0.00050684,120]
[331488077,1720438410250,-6124.77,0.00050684,120]
[331488078,1720438410301,-7434.29,0.00050684,120]
[331488079,1720438410355,-1564.94,0.00050684,120]
[331488080,1720438410407,-3097.92,0.00050684,120]
[331488081,1720438410460,-500.0,0.00050684,120]
[331488082,1720438410512,-500.0,0.00050684,120]
[331488083,1720438410565,-500.0,0.00050684,120]
[331488084,1720438410617,-2569.11,0.00050684,120]
[331488085,1720438410671,-500.0,0.00050684,120]
[331488086,1720438410723,-4977.25,0.00050684,120]
[331488087,1720438410775,-817.49,0.00050684,120]
[331488088,1720438410829,-931.33,0.00050684,120]
[331488089,1720438410882,-500.0,0.00050684,120]
[331488090,1720438410934,-6557.78,0.00050684,120]
[331488091,1720438410986,-8047.98,0.00050684,120]
[331488092,1720438411038,-4890.76,0.00050684,120]
[331488093,1720438411090,-926.07,0.00050684,120]
[331488094,1720438411140,-500.0,0.00050684,120]
[331488095,1720438411192,-500.0,0.00050684,120]
[331488096,1720438411242,-634.86,0.00050684,120]
[331488097,1720438411294,-5071.97,0.00050684,120]
[331488098,1720438411347,-5197.47,0.00050684,120]
[331488099,1720438411401,-12824.58,0.00050684,120]
[331488100,1720438411453,-500.0,0.00050684,120]
[331488101,1720438411504,-737.63,0.00050684,120]
[331488102,1720438411554,-5000.69,0.00050684,120]
[331488103,1720438411607,-500.0,0.00050684,120]
[331488104,1720438411657,-500.0,0.00050684,120]
[331488105,1720438411711,-979.51,0.00050684,120]
[331488106,1720438411760,-1089.79,0.00050684,120]
[331488107,1720438411810,-500.0,0.00050684,120]
[331488108,1720438411860,-1000.0,0.00050684,120]
[331488109,1720438411909,-602.11,0.00050684,120]
[331488110,1720438411963,-3962.26,0.00050684,120]
[331488111,1720438412014,-816.01,0.00050684,120]
[331488112,1720438412064,-500.0,0.00050684,120]
[331488113,1720438412114,-5967.11,0.00050684,120]
[331488114,1720438412162,-474.80568706,0.00050684,120]
[331488115,1720438412211,-952.17,0.00050684,120]
[331488116,1720438412260,-500.0,0.00050684,120]
[331488117,1720438412308,-3856.8,0.00050684,120]
[331488118,1720438412357,-1444.4,0.00050684,120]
[331488119,1720438412404,-4328.98,0.00050684,120]
[331488120,1720438412452,-441.33386493,0.00050684,120]
[331488121,1720438412500,-602.68,0.00050684,120]
[331488122,1720438412722,-500.0,0.00050684,120]
[331488123,1720438412771,-500.0,0.00050684,120]
[331488124,1720438412821,-1667.53,0.00050684,120]
[331488125,1720438412875,-500.0,0.00050684,120]
[331488126,1720438412929,-4918.52,0.00050684,120]
[331488127,1720438412984,-1665.81,0.00050684,120]
[331488128,1720438413037,-500.0,0.00050684,120]
[331488129,1720438413088,-1892.85,0.00050684,120]
[331488130,1720438413137,-500.0,0.00050684,120]
[331488131,1720438413184,-1343.01,0.00050684,120]
[331488132,1720438413233,-2033.08,0.00050684,120]
[331488133,1720438413282,-3737.99,0.00050684,120]
[331488134,1720438413330,-500.0,0.00050684,120]
[331488135,1720438413376,-500.0,0.00050684,120]
[331488136,1720438413425,-681.78,0.00050684,120]
[331488137,1720438413474,-8334.2,0.00050684,120]
[331488138,1720438413521,-2432.96,0.00050684,120]
[331488139,1720438413570,-500.0,0.00050684,120]
[331488140,1720438413617,-2303.71,0.00050684,120]
[331488141,1720438413666,-500.0,0.00050684,120]
[331488142,1720438413715,-500.0,0.00050684,120]
[331488143,1720438413764,-520.93441128,0.00050684,120]
[331488144,1720438413813,-500.0,0.00050684,120]
[331488145,1720438413863,-500.0,0.00050684,120]
[331488146,1720438413916,-7113.69,0.00050684,120]
[331488147,1720438413971,-500.0,0.00050684,120]
[331488148,1720438414023,-2372.86,0.00050684,120]
[331488149,1720438414078,-500.0,0.00050684,120]
[331488150,1720438414133,-6365.6,0.00050684,120]
[331488151,1720438414187,-3895.56,0.00050684,120]
[331488152,1720438414240,-500.0,0.00050684,120]
[331488153,1720438414293,-500.0,0.00050684,120]
[331488154,1720438414348,-4737.12,0.00050684,120]
[331488155,1720438414406,-4028.67,0.00050684,120]
[331488156,1720438414458,-2932.06,0.00050684,120]
[331488157,1720438414511,-602.94095393,0.00050684,120]
[331488158,1720438414564,-9769.22,0.00050684,120]
[331488159,1720438414618,-3721.64,0.00050684,120]
[331488160,1720438414670,-860.724453,0.00050684,30]
[331488161,1720438414725,-579.46,0.00050684,120]
[331488162,1720438414776,-1491.25,0.00050684,120]
[331488163,1720438414827,-9789.62,0.00050684,120]
[331488164,1720438414884,-1519.45,0.00050684,120]
[331488165,1720438414949,-552.8,0.00050684,120]
[331488166,1720438415012,-500.0,0.00050684,120]
[331488167,1720438415065,-18403.09,0.00050684,120]
[331488168,1720438415115,-5134.91,0.00050684,120]
[331488169,1720438415166,-2497.28,0.00050684,120]
[331488170,1720438415216,-506.61,0.00050684,120]
[331488171,1720438415267,-1198.7,0.00050684,120]
[331488172,1720438415316,-1667.87,0.00050684,120]
[331488173,1720438415365,-14120.27,0.00050684,120]
[331488174,1720438415413,-5150.8,0.00050684,120]
[331488175,1720438415462,-8496.48,0.00050684,120]
[331488176,1720438415511,-666.9,0.00050684,120]
[331488177,1720438415561,-326.60170595,0.00050684,120]
[331488178,1720438415608,-500.0,0.00050684,120]
[331488179,1720438415660,-77163.49,0.00050684,120]
[331488180,1720438415710,-500.0,0.00050684,120]
[331488181,1720438415760,-1701.37,0.00050684,120]
[331488182,1720438415810,-500.0,0.00050684,120]
[331488183,1720438415860,-1695.49,0.00050684,120]
[331488184,1720438415910,-3671.69,0.00050684,120]
[331488185,1720438415961,-43789.77,0.00050684,120]
[331488186,1720438416010,-744.56,0.00050684,120]
[331488187,1720438416057,-500.0,0.00050684,120]
[331488188,1720438416106,-5882.08,0.00050684,120]
[331488189,1720438416153,-4253.18,0.00050684,120]
[331488190,1720438416200,-2648.44,0.00050684,120]
[331488191,1720438416251,-500.0,0.00050684,120]
[331488192,1720438416299,-2191.17,0.00050684,120]
[331488193,1720438416347,-500.0,0.00050684,120]
[331488194,1720438416401,-4023.3,0.00050684,120]
[331488195,1720438416450,-500.0,0.00050684,120]
[331488196,1720438416500,-1885.58,0.00050684,120]
[331488197,1720438416549,-226.73542275,0.00050684,120]
[331488198,1720438416597,-500.0,0.00050684,120]
[331488199,1720438416648,-240.24352775,0.00050737,60]
[331488200,1720438416701,-227.81588159,0.00050769,60]
[331488201,1720438416754,-151.14628755,0.0005079,60]
[331488202,1720438416805,-257.56335541,0.00050834,60]
[331488203,1720438416855,-1941.21439951,0.00050872,60]
[331488204,1720438416907,-155.26727901,0.00050884,60]